bitfinex/quotes_SOLUSD_20220227
["timestamp","ask_amount","ask_price","bid_price","bid_amount"]
[1645986724704,113.3,88.487,88.423,2.6837006]
[1645986725306,113.3,88.485,88.424,2.74678921]
[1645986725505,4.522,88.484,88.421,0.11484427]
[1645986725705,113.3,88.483,88.421,0.11484427]
[1645986726005,4.522,88.482,88.421,0.11484427]
[1645986726205,113.3,88.481,88.421,0.11484427]
[1645986726407,4.522,88.48,88.421,0.11484427]
[1645986727106,113.3,88.478,88.421,0.11484427]
[1645986727305,4.522,88.477,88.421,0.11484427]
[1645986727705,113.3,88.475,88.406,0.11484427]
[1645986727906,113.3,88.473,88.406,0.11484427]
[1645986728106,16.29,88.47,88.406,0.11484427]
[1645986728308,114.92368229,88.469,88.406,0.11484427]
[1645986728507,1.63570828,88.468,88.406,0.11484427]
[1645986728707,117.822,88.467,88.406,0.11484427]
[1645986728910,1.56874114,88.466,88.406,0.11484427]
[1645986729207,1.50397506,88.464,88.406,0.11484427]
[1645986729406,113.3,88.449,88.406,0.11484427]
[1645986729607,113.3,88.447,88.406,0.11484427]
[1645986729807,1.48431692,88.446,88.406,0.11484427]
[1645986730008,113.3,88.445,88.406,0.11484427]
[1645986730208,1.74069476,88.444,88.406,0.11484427]
[1645986730411,4.48748397,88.444,88.406,0.11484427]
[1645986730612,114.95253196,88.439,88.406,0.11484427]
[1645986730814,114.95253196,88.439,88.356,0.11484427]
[1645986731014,113.3,88.419,88.356,0.11484427]
[1645986731213,113.3,88.417,88.356,0.11484427]
[1645986734820,113.3,88.415,88.356,0.11484427]
[1645986735019,6.0,88.416,88.356,0.11484427]
[1645986735020,113.3,88.409,88.356,0.11484427]
[1645986735222,4.525,88.408,88.356,0.11484427]
[1645986735419,113.3,88.407,88.337,0.11484427]
[1645986735620,4.526,88.406,88.337,0.11484427]
[1645986736020,113.3,88.404,88.337,0.11484427]
[1645986736221,4.526,88.403,88.337,0.11484427]
[1645986736621,113.3,88.399,88.337,0.11484427]
[1645986736920,4.526,88.398,88.337,0.11484427]
[1645986738322,2.74678921,88.419,88.337,0.11484427]
[1645986738523,203.59,88.49,88.337,0.11484427]
[1645986738524,70.0645,88.448,88.35,16.29]
[1645986738724,4.524,88.488,88.351,88.44001943]
[1645986738927,51.4528,88.488,88.352,116.24024571]
[1645986739225,4.524,88.487,88.355,3.12402819]
[1645986739424,46.9288,88.488,88.37,16.29]
[1645986739624,46.9288,88.488,88.39,16.9728]
[1645986739826,6.0,88.465,88.392,33.38539862]
[1645986740024,6.0,88.465,88.393,8.93634265]
[1645986740425,113.3,88.464,88.393,8.93634265]
[1645986740825,113.3,88.464,88.393,2.93634265]
[1645986741428,4.523,88.463,88.393,2.93634265]
[1645986741630,113.3,88.464,88.393,2.93634265]
[1645986742029,113.3,88.464,88.394,0.11484427]
[1645986742830,117.823,88.479,88.394,0.11484427]
[1645986743428,113.3,88.477,88.394,0.11484427]
[1645986743630,117.823,88.477,88.394,0.11484427]
[1645986744230,6.0,88.478,88.4,16.9716]
[1645986744430,6.0,88.478,88.401,3.0576073]
[1645986744830,46.9288,88.488,88.401,3.0576073]
[1645986745031,46.9288,88.488,88.402,0.11484427]
[1645986745239,113.3,88.486,88.402,0.11484427]
[1645986746032,4.522,88.485,88.402,0.11484427]
[1645986746231,113.3,88.479,88.402,0.11484427]
[1645986746432,113.3,88.477,88.402,0.11484427]
[1645986746634,113.3,88.475,88.402,0.11484427]
[1645986746834,113.3,88.459,88.402,0.11484427]
[1645986747033,113.3,88.449,88.402,0.11484427]
[1645986747232,4.523,88.448,88.402,0.11484427]
[1645986748233,4.523,88.456,88.402,0.11484427]
[1645986748433,16.9826,88.44,88.358,0.11484427]
[1645986748634,117.824,88.439,88.358,0.11484427]
[1645986748832,147.8136,88.439,88.358,0.11484427]
[1645986749236,113.3,88.437,88.358,0.11484427]
[1645986749434,4.525,88.436,88.358,0.11484427]
[1645986750636,113.3,88.419,88.358,0.11484427]
[1645986750837,113.3,88.417,88.358,0.11484427]
[1645986751038,4.525,88.416,88.358,0.11484427]
[1645986751437,4.525,88.416,88.325,0.11484427]
[1645986754450,113.3,88.414,88.325,0.11484427]
[1645986754656,4.526,88.413,88.325,0.11484427]
[1645986755842,113.3,88.414,88.325,0.11484427]
[1645986756241,4.526,88.413,88.325,0.11484427]
[1645986757044,113.3,88.414,88.325,0.11484427]
[1645986757945,113.3,88.413,88.325,0.11484427]
[1645986758845,113.3,88.411,88.325,0.11484427]
[1645986759045,4.526,88.41,88.325,0.11484427]
[1645986759246,113.3,88.411,88.327,1.06416942]
[1645986759448,113.3,88.411,88.328,6.0]
[1645986759648,113.3,88.411,88.328,6.11484427]
[1645986761848,117.826,88.417,88.328,6.11484427]
[1645986762160,113.3,88.409,88.328,6.11484427]
[1645986762348,4.526,88.408,88.328,6.11484427]
[1645986762546,113.3,88.406,88.328,6.11484427]
[1645986762746,4.526,88.405,88.328,6.11484427]
[1645986763247,4.526,88.405,88.328,0.11484427]
[1645986763248,113.3,88.399,88.328,0.11484427]
[1645986763450,24.4295,88.407,88.262,2.85821991]
[1645986763451,113.3,88.389,88.262,2.85821991]
[1645986763648,16.29,88.39,88.241,2.76025036]
[1645986763649,113.3,88.379,88.241,2.76025036]
[1645986763849,113.3,88.373,88.241,2.76025036]
[1645986764051,113.3,88.359,88.241,2.76025036]
[1645986764251,113.3,88.357,88.242,35.01566385]
[1645986764451,113.3,88.355,88.243,2.49590562]
[1645986764649,5.89533937,88.354,88.243,2.49590562]
[1645986764853,113.3,88.339,88.243,2.49590562]
[1645986765048,113.3,88.329,88.243,2.49590562]
[1645986765251,113.3,88.319,88.243,2.49590562]
[1645986765451,113.3,88.317,88.244,6.0]
[1645986765849,6.0,88.318,88.244,8.74678921]
[1645986766051,6.0,88.318,88.245,2.74678921]
[1645986766554,16.29,88.35,88.245,2.74678921]
[1645986766752,6.0,88.338,88.245,2.74678921]
[1645986766952,113.3,88.337,88.246,6.0]
[1645986767151,113.3,88.338,88.245,5.03905952]
[1645986767353,113.3,88.338,88.247,2.74678921]
[1645986768770,4.53,88.337,88.247,2.74678921]
[1645986768971,113.3,88.335,88.247,2.74678921]
[1645986769171,4.53,88.334,88.247,2.74678921]
[1645986769573,113.3,88.329,88.247,2.74678921]
[1645986769774,4.53,88.328,88.245,2.29227031]
[1645986770679,1.58011964,88.319,88.245,2.29227031]
[1645986770875,115.02926076,88.309,88.245,2.29227031]
[1645986771076,4.531,88.308,88.204,3.1123436]
[1645986771383,113.3,88.306,88.204,3.1123436]
[1645986771579,4.532,88.305,88.204,3.1123436]
[1645986771876,4.532,88.305,88.205,28.41525128]
[1645986772077,113.3,88.304,88.206,2.41785808]
[1645986772279,113.3,88.289,88.206,2.41785808]
[1645986772877,4.532,88.288,88.206,2.41785808]
[1645986774882,113.3,88.286,88.206,2.41785808]
[1645986776083,113.3,88.279,88.206,2.41785808]
[1645986778388,2.74678921,88.278,88.206,2.41785808]
[1645986779084,113.3,88.279,88.206,2.41785808]
[1645986779283,113.3,88.269,88.206,2.41785808]
[1645986779883,113.3,88.267,88.206,2.41785808]
[1645986781086,6.0,88.268,88.206,2.41785808]
[1645986781683,113.3,88.275,88.206,2.41785808]
[1645986781885,113.3,88.273,88.206,2.41785808]
[1645986782887,113.3,88.272,88.206,2.41785808]
[1645986783285,116.04678921,88.272,88.206,2.41785808]
[1645986783486,113.3,88.27,88.206,2.41785808]
[1645986784889,113.3,88.27,88.207,6.0]
[1645986785287,113.3,88.27,88.206,2.41785808]
[1645986785492,113.3,88.259,88.206,2.41785808]
[1645986785689,4.533,88.258,88.206,2.41785808]
[1645986785889,113.3,88.257,88.206,2.41785808]
[1645986786090,4.533,88.256,88.12,16.29]
[1645986786292,113.3,88.255,88.185,32.58626392]
[1645986786491,113.3,88.239,88.203,2.42628084]
[1645986787090,113.3,88.239,88.185,32.58626392]
[1645986787291,113.3,88.239,88.203,2.63390256]
[1645986790697,113.3,88.237,88.203,2.63390256]
[1645986791498,16.29,88.24,88.203,2.63390256]
[1645986793398,113.3,88.239,88.203,2.63390256]
[1645986793598,16.29,88.24,88.203,2.63390256]
[1645986794400,6.0,88.239,88.203,2.63390256]
[1645986794699,113.3,88.238,88.203,2.63390256]
[1645986798104,113.3,88.239,88.203,2.63390256]
[1645986799007,113.3,88.237,88.203,2.63390256]
[1645986801712,6.0,88.238,88.203,2.63390256]
[1645986802226,113.3,88.249,88.203,2.63390256]
[1645986803125,113.3,88.259,88.203,2.63390256]
[1645986803432,113.3,88.249,88.203,2.63390256]
[1645986804431,113.3,88.248,88.203,2.63390256]
[1645986805534,117.833,88.259,88.203,2.63390256]
[1645986805734,113.3,88.257,88.203,2.63390256]
[1645986805940,4.533,88.256,88.203,2.63390256]
[1645986806834,17.0908,88.27,88.203,2.63390256]
[1645986806835,19.03678921,88.28,88.203,2.63390256]
[1645986807037,2.74678921,88.28,88.203,2.63390256]
[1645986807234,24.9403,88.308,88.205,3.09505962]
[1645986807434,4.532,88.307,88.205,3.09505962]
[1645986807634,4.532,88.307,88.206,2.74678921]
[1645986807835,113.3,88.284,88.206,2.74678921]
[1645986808237,24.9403,88.308,88.21,16.29]
[1645986808434,24.9403,88.308,88.211,2.8163939]
[1645986808639,16.7209,88.31,88.212,61.39952082]
[1645986808834,16.7209,88.31,88.213,2.35652748]
[1645986809034,16.7209,88.31,88.214,119.3]
[1645986809237,16.7209,88.31,88.215,2.5708845]
[1645986809435,6.0,88.309,88.23,16.29]
[1645986809641,6.0,88.309,88.231,2.67006842]
[1645986809837,6.0,88.309,88.24,17.0024]
[1645986810038,6.0,88.309,88.241,34.17115357]
[1645986810337,6.0,88.309,88.242,3.02538251]
[1645986811637,6.0,88.309,88.243,2.74678921]
[1645986812037,15.35928781,88.31,88.243,2.74678921]
[1645986812438,6.0,88.309,88.243,2.74678921]
[1645986813241,23.7535,88.318,88.25,17.0005]
[1645986813443,23.7535,88.318,88.251,2.92635651]
[1645986813643,23.7535,88.318,88.251,5.67314572]
[1645986814343,113.3,88.331,88.251,5.67314572]
[1645986814545,4.53,88.354,88.26,16.9984]
[1645986814746,4.529,88.358,88.261,26.25329714]
[1645986814944,6.0,88.358,88.262,2.34521348]
[1645986815145,6.0,88.358,88.262,8.47521348]
[1645986815344,6.0,88.357,88.263,8.65059315]
[1645986815544,117.829,88.373,88.263,11.39738236]
[1645986815747,113.3,88.371,88.264,2.74678921]
[1645986815945,4.529,88.37,88.265,6.0]
[1645986816149,113.3,88.371,88.27,16.29]
[1645986816347,113.3,88.371,88.271,65.69538958]
[1645986816547,113.3,88.371,88.28,16.9941]
[1645986816747,113.3,88.373,88.281,26.36130088]
[1645986816952,113.3,88.373,88.282,2.48073084]
[1645986817152,4.527,88.372,88.282,2.48073084]
[1645986817349,4.527,88.372,88.283,6.0]
[1645986817550,4.527,88.373,88.283,8.74678921]
[1645986817749,4.527,88.374,88.291,2.9488939]
[1645986819150,24.3861,88.382,88.3,16.9907]
[1645986819351,24.3861,88.382,88.301,30.10705584]
[1645986819653,24.3861,88.382,88.302,2.77015309]
[1645986819853,24.3861,88.382,88.302,5.5169423]
[1645986820252,113.3,88.398,88.302,5.5169423]
[1645986820451,4.527,88.397,88.31,16.9881]
[1645986820651,4.527,88.397,88.311,3.01109119]
[1645986821554,119.3,88.398,88.311,3.01109119]
[1645986823755,123.827,88.398,88.311,3.01109119]
[1645986823957,123.827,88.398,88.312,6.0]
[1645986826056,10.527,88.398,88.313,113.3]
[1645986826257,4.527,88.419,88.321,113.3]
[1645986826459,4.526,88.452,88.324,2.87475394]
[1645986826658,23.6655,88.451,88.326,2.48598826]
[1645986826858,4.526,88.45,88.341,34.39045954]
[1645986827058,24.9969,88.449,88.342,6.0]
[1645986827259,24.9969,88.449,88.342,8.80165444]
[1645986827260,113.3,88.426,88.342,8.80165444]
[1645986827559,113.3,88.426,88.342,11.54844365]
[1645986827758,113.3,88.426,88.343,2.74678921]
[1645986828058,113.3,88.422,88.35,16.9809]
[1645986828258,116.04678921,88.422,88.342,2.80165444]
[1645986828459,113.3,88.42,88.342,2.80165444]
[1645986828663,4.525,88.419,88.342,2.80165444]
[1645986828860,113.3,88.418,88.342,2.80165444]
[1645986829062,4.525,88.417,88.342,2.80165444]
[1645986829658,4.525,88.417,88.32,16.29]
[1645986829659,116.04678921,88.416,88.326,2.45721238]
[1645986829859,113.3,88.414,88.31,16.29]
[1645986830059,113.3,88.409,88.304,24.8095]
[1645986830259,4.527,88.408,88.305,2.90641268]
[1645986830461,113.3,88.407,88.305,2.90641268]
[1645986830658,113.3,88.405,88.306,29.85677811]
[1645986830859,4.527,88.404,88.307,3.02901574]
[1645986831061,113.3,88.399,88.307,3.02901574]
[1645986831663,2.74678921,88.398,88.307,3.02901574]
[1645986831861,4.527,88.405,88.31,16.29]
[1645986832060,137.0226,88.406,88.31,16.29]
[1645986832061,137.0226,88.406,88.311,3.08747985]
[1645986832261,137.0226,88.406,88.311,26.58726209]
[1645986832461,4.527,88.405,88.312,3.0019173]
[1645986833362,6.0,88.404,88.312,3.0019173]
[1645986833861,6.0,88.403,88.313,2.74678921]
[1645986834061,137.0226,88.406,88.313,2.74678921]
[1645986834265,6.0,88.405,88.312,3.0019173]
[1645986834461,6.0,88.405,88.313,6.0]
[1645986834663,113.3,88.404,88.313,6.0]
[1645986834862,116.04678921,88.404,88.313,6.0]
[1645986835063,2.74678921,88.403,88.313,6.0]
[1645986835268,2.74678921,88.403,88.312,3.0019173]
[1645986836067,2.74678921,88.403,88.32,16.9867]
[1645986836264,2.74678921,88.403,88.321,2.98227948]
[1645986837767,2.74678921,88.403,88.322,22.9782]
[1645986837967,2.74678921,88.403,88.323,3.05180791]
[1645986838868,6.0,88.402,88.323,3.05180791]
[1645986839271,6.0,88.402,88.33,16.9848]
[1645986839469,6.0,88.401,88.331,3.11034452]
[1645986839672,137.0226,88.406,88.331,3.11034452]
[1645986839869,6.0,88.405,88.331,3.11034452]
[1645986840869,113.3,88.404,88.331,3.11034452]
[1645986841070,4.526,88.403,88.323,2.4016652]
[1645986841670,2.74678921,88.402,88.323,2.4016652]
[1645986841874,4.526,88.401,88.323,2.4016652]
[1645986842270,113.3,88.399,88.323,2.89909626]
[1645986842471,113.3,88.397,88.307,2.86195245]
[1645986842670,6.0135886,88.398,88.307,2.86195245]
[1645986842671,113.3,88.395,88.307,2.86195245]
[1645986842870,113.3,88.379,88.307,2.86195245]
[1645986843071,113.3,88.377,88.307,2.86195245]
[1645986843270,113.3,88.369,88.307,2.86195245]
[1645986843473,4.527,88.368,88.272,2.9784076]
[1645986843874,2.74678921,88.367,88.272,2.9784076]
[1645986844071,4.529,88.366,88.272,2.9784076]
[1645986844272,113.3,88.364,88.273,28.64761665]
[1645986844474,113.3,88.359,88.274,2.78359419]
[1645986844672,113.3,88.357,88.274,2.78359419]
[1645986846375,117.829,88.357,88.274,2.78359419]
[1645986846977,113.3,88.356,88.274,2.78359419]
[1645986847178,4.529,88.355,88.274,2.78359419]
[1645986847375,113.3,88.353,88.274,2.78359419]
[1645986847577,113.3,88.349,88.274,2.78359419]
[1645986847775,4.529,88.348,88.274,2.78359419]
[1645986848377,113.3,88.346,88.274,2.78359419]
[1645986848579,4.529,88.345,88.274,2.78359419]
[1645986852208,4.529,88.348,88.274,2.78359419]
[1645986854913,113.3,88.346,88.274,2.78359419]
[1645986855114,4.529,88.345,88.274,2.78359419]
[1645986856123,113.3,88.349,88.274,2.78359419]
[1645986856818,4.529,88.348,88.274,2.78359419]
[1645986857618,4.529,88.366,88.274,2.78359419]
[1645986857818,4.529,88.366,88.275,2.74678921]
[1645986858018,4.529,88.369,88.275,2.74678921]
[1645986858219,16.9969,88.37,88.275,2.74678921]
[1645986858620,117.829,88.369,88.28,16.29]
[1645986858820,4.529,88.369,88.281,2.42870854]
[1645986859018,4.529,88.378,88.281,5.17549775]
[1645986859421,6.0,88.353,88.282,2.74678921]
[1645986859622,113.3,88.376,88.282,2.74678921]
[1645986859821,113.3,88.374,88.283,23.2252]
[1645986860022,113.3,88.374,88.284,2.28161729]
[1645986860221,113.3,88.374,88.284,5.0284065]
[1645986860621,113.3,88.374,88.285,2.74678921]
[1645986860822,6.0,88.375,88.29,16.9919]
[1645986861031,6.0,88.375,88.291,2.44063712]
[1645986861624,137.7152,88.377,88.291,2.44063712]
[1645986861824,6.0,88.376,88.291,2.44063712]
[1645986864426,6.0,88.376,88.292,2.74678921]
[1645986865226,6.0,88.376,88.3,16.9898]
[1645986865428,6.0,88.376,88.301,28.25851829]
[1645986865628,6.0,88.376,88.302,25.64169081]
[1645986865827,6.0,88.376,88.303,2.32116865]
[1645986869931,6.0,88.376,88.304,2.74678921]
[1645986874634,6.0,88.376,88.303,2.32116865]
[1645986875035,6.0,88.376,88.304,2.74678921]
[1645986875334,113.3,88.375,88.303,2.32116865]
[1645986875536,4.527,88.374,88.303,2.32116865]
[1645986876335,4.527,88.375,88.303,2.32116865]
[1645986878958,113.3,88.373,88.303,2.32116865]
[1645986879157,4.527,88.372,88.303,2.32116865]
[1645986879657,113.3,88.369,88.303,2.32116865]
[1645986879857,4.527,88.368,88.303,2.32116865]
[1645986880058,113.3,88.367,88.272,24.7026]
[1645986880257,113.3,88.365,88.273,2.6468298]
[1645986880457,4.529,88.364,88.273,2.6468298]
[1645986880859,113.3,88.362,88.274,25.92663176]
[1645986881059,4.529,88.361,88.274,25.92663176]
[1645986881259,113.3,88.359,88.275,2.25700522]
[1645986881462,4.529,88.358,88.275,2.25700522]
[1645986881859,113.3,88.357,88.275,2.25700522]
[1645986882061,4.529,88.356,88.275,2.25700522]
[1645986882459,113.3,88.349,88.275,2.25700522]
[1645986882661,113.3,88.347,88.275,2.25700522]
[1645986885163,23.9388,88.348,88.275,2.25700522]
[1645986885362,6.0,88.347,88.275,2.25700522]
[1645986888065,6.0,88.347,88.28,16.994]
[1645986888265,137.2836,88.377,88.281,2.61259664]
[1645986888467,137.2836,88.377,88.281,5.35938585]
[1645986888664,137.2836,88.377,88.282,6.0]
[1645986888865,137.2836,88.377,88.282,11.37187867]
[1645986889266,137.2836,88.377,88.283,2.74678921]
[1645986889465,137.2836,88.377,88.29,16.9915]
[1645986889665,137.2836,88.377,88.292,2.30715696]
[1645986889867,4.527,88.376,88.292,2.30715696]
[1645986890069,137.2836,88.377,88.292,2.30715696]
[1645986891971,6.0,88.376,88.292,115.60715696]
[1645986892173,4.527,88.396,88.3,16.9895]
[1645986892370,2.74678921,88.407,88.31,16.29]
[1645986892371,6.0,88.395,88.31,16.29]
[1645986892572,24.1793,88.406,88.311,29.9906]
[1645986892772,6.0,88.405,88.312,2.6599456]
[1645986892974,113.3,88.404,88.313,6.0]
[1645986893374,6.0,88.405,88.321,2.68752539]
[1645986893576,6.0,88.405,88.322,6.0]
[1645986893772,6.0,88.405,88.324,2.73422975]
[1645986893973,6.0,88.405,88.325,6.0]
[1645986894175,6.0,88.405,88.33,16.29]
[1645986894373,6.0,88.405,88.331,37.12886973]
[1645986894574,6.0,88.405,88.332,2.69647862]
[1645986899978,113.3,88.404,88.332,2.69647862]
[1645986900178,4.526,88.403,88.332,2.69647862]
[1645986900580,113.3,88.401,88.332,2.69647862]
[1645986901080,113.3,88.399,88.332,2.69647862]
[1645986901283,4.526,88.398,88.332,2.69647862]
[1645986902282,2.74678921,88.397,88.301,24.7565]
[1645986902483,4.527,88.396,88.302,26.57623915]
[1645986902683,113.3,88.395,88.303,2.44121479]
[1645986902883,113.3,88.393,88.303,2.44121479]
[1645986903083,113.3,88.391,88.303,2.44121479]
[1645986903285,4.527,88.39,88.304,34.51219414]
[1645986903483,113.3,88.389,88.305,2.62778939]
[1645986903684,113.3,88.387,88.305,2.62778939]
[1645986903891,113.3,88.385,88.305,2.62778939]
[1645986904088,113.3,88.383,88.305,2.62778939]
[1645986904289,4.527,88.382,88.305,2.62778939]
[1645986904491,113.3,88.379,88.305,2.62778939]
[1645986904690,113.3,88.377,88.305,2.62778939]
[1645986904890,113.3,88.375,88.305,2.62778939]
[1645986905093,113.3,88.373,88.305,2.62778939]
[1645986905289,113.3,88.371,88.272,2.46666161]
[1645986905491,114.92076366,88.369,88.272,2.46666161]
[1645986905690,20.817,88.37,88.272,2.46666161]
[1645986905691,113.3,88.367,88.272,2.46666161]
[1645986905890,113.3,88.365,88.272,2.46666161]
[1645986906092,113.3,88.363,88.273,36.40073121]
[1645986906292,4.529,88.362,88.274,2.8550568]
[1645986906495,113.3,88.359,88.274,2.8550568]
[1645986906693,4.529,88.358,88.274,2.8550568]
[1645986907494,113.3,88.356,88.274,2.8550568]
[1645986907693,4.529,88.355,88.274,2.8550568]
[1645986911215,4.529,88.356,88.274,2.8550568]
[1645986911817,199.79670167,88.354,88.274,2.8550568]
[1645986912017,141.175,88.353,88.274,2.8550568]
[1645986912420,23.346,88.353,88.274,5.60184601]
[1645986912621,23.346,88.353,88.275,22.24602508]
[1645986912820,23.346,88.353,88.28,16.29]
[1645986913020,23.346,88.353,88.281,2.38233972]
[1645986913220,23.346,88.353,88.282,22.7941]
[1645986913421,23.346,88.353,88.283,2.95218281]
[1645986914723,6.0,88.352,88.283,2.95218281]
[1645986915123,23.346,88.353,88.283,2.95218281]
[1645986915625,199.79670167,88.354,88.283,2.95218281]
[1645986915825,199.79670167,88.354,88.29,16.9913]
[1645986916024,199.79670167,88.354,88.291,2.45044785]
[1645986916226,6.0,88.353,88.291,2.45044785]
[1645986917428,6.0,88.353,88.292,2.74678921]
[1645986917829,6.0,88.353,88.291,2.45044785]
[1645986920531,6.0,88.353,88.292,6.0]
[1645986920732,6.0,88.353,88.291,2.45044785]
[1645986920934,6.0,88.353,88.292,6.0]
[1645986921136,6.0,88.353,88.291,2.45044785]
[1645986921334,6.0,88.353,88.292,6.0]
[1645986922237,6.0,88.353,88.291,2.45044785]
[1645986923438,6.0,88.353,88.292,6.0]
[1645986924537,6.0,88.353,88.291,2.45044785]
[1645986929243,113.3,88.352,88.291,2.45044785]
[1645986932965,112.3,88.35,88.291,2.45044785]
[1645986934770,112.3,88.35,88.282,22.7941]
[1645986934972,112.3,88.352,88.283,2.68613782]
[1645986935768,116.829,88.352,88.283,2.68613782]
[1645986936369,112.3,88.35,88.283,2.68613782]
[1645986937469,112.3,88.35,88.251,2.66686939]
[1645986937470,4.529,88.349,88.251,2.66686939]
[1645986937670,112.3,88.339,88.251,26.53426939]
[1645986937877,112.3,88.337,88.252,2.72841042]
[1645986938070,4.53,88.336,88.252,2.72841042]
[1645986938270,4.53,88.336,88.255,27.04808587]
[1645986938471,4.53,88.336,88.256,2.81442768]
[1645986938670,112.3,88.329,88.256,2.81442768]
[1645986938871,4.53,88.328,88.256,2.81442768]
[1645986939069,112.3,88.327,88.228,2.40803032]
[1645986939271,4.53,88.326,88.228,2.40803032]
[1645986939470,4.53,88.326,88.244,26.21524776]
[1645986939673,115.04678921,88.325,88.244,26.21524776]
[1645986939872,4.53,88.324,88.245,2.60031124]
[1645986940272,4.53,88.324,88.228,2.74841422]
[1645986940273,112.3,88.293,88.228,2.74841422]
[1645986940671,4.532,88.292,88.228,2.74841422]
[1645986941071,113.3,88.29,88.228,2.74841422]
[1645986941271,113.3,88.29,88.23,2.4772564]
[1645986942275,143.20010725,88.279,88.23,2.4772564]
[1645986942773,6.0,88.278,88.23,2.4772564]
[1645986943073,119.3,88.278,88.23,2.4772564]
[1645986943272,119.3,88.278,88.196,22.24602508]
[1645986943273,119.3,88.278,88.201,3.08244252]
[1645986943474,113.3,88.276,88.201,3.08244252]
[1645986943874,113.3,88.274,88.201,3.08244252]
[1645986944078,113.3,88.274,88.202,35.00520363]
[1645986944274,113.3,88.269,88.203,3.06039486]
[1645986944676,4.533,88.268,88.203,3.06039486]
[1645986947387,6.0,88.267,88.203,3.06039486]
[1645986947586,23.6878,88.277,88.203,3.06039486]
[1645986947789,6.0,88.276,88.204,2.74678921]
[1645986948590,6.0,88.276,88.206,113.3]
[1645986948789,6.0,88.276,88.209,2.59664046]
[1645986949090,23.3074,88.307,88.21,46.8846]
[1645986949291,4.532,88.306,88.211,2.47262291]
[1645986949491,4.532,88.306,88.212,6.0]
[1645986949691,23.3074,88.307,88.212,6.0]
[1645986949894,6.0,88.278,88.212,6.0]
[1645986950895,6.0,88.278,88.211,5.21941212]
[1645986951096,6.0,88.278,88.213,2.74678921]
[1645986952502,6.0,88.278,88.214,6.0]
[1645986952997,6.0,88.278,88.213,2.74678921]
[1645986953799,6.0,88.278,88.214,6.0]
[1645986954904,6.0,88.278,88.215,2.74678921]
[1645986955701,6.0,88.278,88.221,2.3007288]
[1645986955920,6.0,88.278,88.222,6.0]
[1645986956120,6.0,88.278,88.222,8.74678921]
[1645986956319,6.0,88.278,88.223,2.74678921]
[1645986957522,6.0,88.278,88.23,17.0037]
[1645986957725,6.0,88.278,88.231,30.72791471]
[1645986957923,23.3074,88.307,88.232,2.95624642]
[1645986958524,23.3074,88.307,88.232,116.25624642]
[1645986958724,4.532,88.331,88.24,17.0022]
[1645986958926,24.8739,88.329,88.241,2.84849944]
[1645986959125,24.8739,88.329,88.241,5.59528865]
[1645986959324,24.8739,88.329,88.242,2.74678921]
[1645986960125,4.532,88.328,88.242,2.74678921]
[1645986960326,4.532,88.328,88.243,6.0]
[1645986960528,4.532,88.328,88.25,16.999]
[1645986960725,4.532,88.328,88.25,33.289]
[1645986960926,4.532,88.328,88.251,2.63391484]
[1645986961824,6.0,88.327,88.253,2.31663504]
[1645986962227,4.53,88.326,88.253,2.31663504]
[1645986962927,6.0,88.327,88.253,2.31663504]
[1645986964430,6.0,88.327,88.26,16.9981]
[1645986964630,231.31781684,88.329,88.261,31.44773174]
[1645986964833,6.0,88.328,88.262,2.27020765]
[1645986965436,6.0,88.328,88.263,24.3943]
[1645986965636,6.0,88.328,88.264,2.74788008]
[1645986967941,6.0,88.328,88.27,16.9963]